{"text_format":"2","workbook":"xlsx","n_sheets":2,"sheets":["Új Folyóiratok","Új Könyvek"],"not_rendered":{"charts":0,"images":0,"macros":0,"external_links":0,"defined_names":0,"comments":0,"pivot_tables":0},"unopened":[],"bounds":{"document_bytes":16777216,"sheet_cells":100000,"run_cost":"one","rows_first":2000,"rows_last":500,"rows_between":2000,"halvings":0,"cell_chars":16384,"cell_head_chars":4096},"cells_cut":0,"cells_raw":0,"read":"whole","date_system":"1900"}

{"sheet":"Új Folyóiratok","index":0,"n_rows":24,"n_cols":13,"rows_kept":24,"cut":false,"hidden":false,"merged":[]}
["Journal Title","ISSN","eISSN","Publisher","Beginning Volume","Beginning Issue","Latest Volume","Latest Issue","Beginning Year Coverage","Latest Year Coverage","Jumpstart","Prod Code","Order"]
["A&A Case Reports","2325-7237","","Lippincott Williams & Wilkins, Inc.",1,1,9,12,"October 2013","December 15, 2017",{"$f":"HYPERLINK(\"http://ovidsp.ovid.com/ovidweb.cgi?T=JS&NEWS=n&CSC=Y&PAGE=toc&D=yrovft&AN=01720097-000000000-00000\",\"http://ovidsp.ovid.com/ovidweb.cgi?T=JS&NEWS=n&CSC=Y&PAGE=toc&D=yrovft&AN=01720097-000000000-00000\")","v":"http://ovidsp.ovid.com/ovidweb.cgi?T=JS&NEWS=n&CSC=Y&PAGE=toc&D=yrovft&AN=01720097-000000000-00000"},"AACR-CS-I13",363499]
["AJSP: Reviews and Reports","2381-5949","2381-652X","Lippincott Williams & Wilkins, Inc.",21,1,23,1,"January/February 2016","January/February 2018",{"$f":"HYPERLINK(\"http://ovidsp.ovid.com/ovidweb.cgi?T=JS&NEWS=n&CSC=Y&PAGE=toc&D=yrovft&AN=01929425-000000000-00000\",\"http://ovidsp.ovid.com/ovidweb.cgi?T=JS&NEWS=n&CSC=Y&PAGE=toc&D=yrovft&AN=01929425-000000000-00000\")","v":"http://ovidsp.ovid.com/ovidweb.cgi?T=JS&NEWS=n&CSC=Y&PAGE=toc&D=yrovft&AN=01929425-000000000-00000"},"LPCP-CS-I15",1075469]
["American Journal of Physical Medicine & Rehabilitation","0894-9115","1537-7385","Lippincott Williams & Wilkins, Inc.",75,1,97,1,"January/February 1996","January 2018",{"$f":"HYPERLINK(\"http://ovidsp.ovid.com/ovidweb.cgi?T=JS&NEWS=n&CSC=Y&PAGE=toc&D=yrovft&AN=00002060-000000000-00000\",\"http://ovidsp.ovid.com/ovidweb.cgi?T=JS&NEWS=n&CSC=Y&PAGE=toc&D=yrovft&AN=00002060-000000000-00000\")","v":"http://ovidsp.ovid.com/ovidweb.cgi?T=JS&NEWS=n&CSC=Y&PAGE=toc&D=yrovft&AN=00002060-000000000-00000"},"AJPM-JN-96 ",1147195]
["Circulation: Cardiovascular Imaging","1941-9651","1942-0080","American Heart Association",1,1,10,12,"July 2008","December 2017",{"$f":"HYPERLINK(\"http://ovidsp.ovid.com/ovidweb.cgi?T=JS&NEWS=n&CSC=Y&PAGE=toc&D=yrovft&AN=01337498-000000000-00000\",\"http://ovidsp.ovid.com/ovidweb.cgi?T=JS&NEWS=n&CSC=Y&PAGE=toc&D=yrovft&AN=01337498-000000000-00000\")","v":"http://ovidsp.ovid.com/ovidweb.cgi?T=JS&NEWS=n&CSC=Y&PAGE=toc&D=yrovft&AN=01337498-000000000-00000"},"CCIM-JN-08 ",1147194]
["Circulation: Heart Failure","1941-3289","1941-3297","American Heart Association",1,1,10,12,"May 2008","December 2017",{"$f":"HYPERLINK(\"http://ovidsp.ovid.com/ovidweb.cgi?T=JS&NEWS=n&CSC=Y&PAGE=toc&D=yrovft&AN=01337494-000000000-00000\",\"http://ovidsp.ovid.com/ovidweb.cgi?T=JS&NEWS=n&CSC=Y&PAGE=toc&D=yrovft&AN=01337494-000000000-00000\")","v":"http://ovidsp.ovid.com/ovidweb.cgi?T=JS&NEWS=n&CSC=Y&PAGE=toc&D=yrovft&AN=01337494-000000000-00000"},"CIHF-JN-08 ",1147192]
["Clinical Spine Surgery","2380-0186","2380-0194","Lippincott Williams & Wilkins, Inc.",29,1,30,10,"February 2016","December 2017",{"$f":"HYPERLINK(\"http://ovidsp.ovid.com/ovidweb.cgi?T=JS&NEWS=n&CSC=Y&PAGE=toc&D=yrovft&AN=01933606-000000000-00000\",\"http://ovidsp.ovid.com/ovidweb.cgi?T=JS&NEWS=n&CSC=Y&PAGE=toc&D=yrovft&AN=01933606-000000000-00000\")","v":"http://ovidsp.ovid.com/ovidweb.cgi?T=JS&NEWS=n&CSC=Y&PAGE=toc&D=yrovft&AN=01933606-000000000-00000"},"LPCP-CS-I15",1075469]
["Home Healthcare Now","2374-4529","","Lippincott Williams & Wilkins, Inc.",33,1,35,10,"January 2015","November/December 2017",{"$f":"HYPERLINK(\"http://ovidsp.ovid.com/ovidweb.cgi?T=JS&NEWS=n&CSC=Y&PAGE=toc&D=yrovft&AN=01845097-000000000-00000\",\"http://ovidsp.ovid.com/ovidweb.cgi?T=JS&NEWS=n&CSC=Y&PAGE=toc&D=yrovft&AN=01845097-000000000-00000\")","v":"http://ovidsp.ovid.com/ovidweb.cgi?T=JS&NEWS=n&CSC=Y&PAGE=toc&D=yrovft&AN=01845097-000000000-00000"},"LPCP-CS-I15",1075469]
["JAIDS Journal of Acquired Immune Deficiency Syndromes","1525-4135","1944-7884","Lippincott Williams & Wilkins, Inc.",21,1,77,1,"May 1, 1999","January 1, 2018",{"$f":"HYPERLINK(\"http://ovidsp.ovid.com/ovidweb.cgi?T=JS&NEWS=n&CSC=Y&PAGE=toc&D=yrovft&AN=00126334-000000000-00000\",\"http://ovidsp.ovid.com/ovidweb.cgi?T=JS&NEWS=n&CSC=Y&PAGE=toc&D=yrovft&AN=00126334-000000000-00000\")","v":"http://ovidsp.ovid.com/ovidweb.cgi?T=JS&NEWS=n&CSC=Y&PAGE=toc&D=yrovft&AN=00126334-000000000-00000"},"LPCP-CS-I15",1075469]
["JBJS Case Connector","2160-3251","2160-3251","The Journal of Bone and Joint Surgery, Inc.",1,1,7,4,"July-September 2011","October-December 2017",{"$f":"HYPERLINK(\"http://ovidsp.ovid.com/ovidweb.cgi?T=JS&NEWS=n&CSC=Y&PAGE=toc&D=yrovft&AN=01709767-000000000-00000\",\"http://ovidsp.ovid.com/ovidweb.cgi?T=JS&NEWS=n&CSC=Y&PAGE=toc&D=yrovft&AN=01709767-000000000-00000\")","v":"http://ovidsp.ovid.com/ovidweb.cgi?T=JS&NEWS=n&CSC=Y&PAGE=toc&D=yrovft&AN=01709767-000000000-00000"},"JBJS-CS-I15",1075466]
["JBJS Essential Surgical Techniques","2160-2204","","The Journal of Bone and Joint Surgery, Inc.",1,1,7,4,"April-June 2011","October-December 2017",{"$f":"HYPERLINK(\"http://ovidsp.ovid.com/ovidweb.cgi?T=JS&NEWS=n&CSC=Y&PAGE=toc&D=yrovft&AN=01709766-000000000-00000\",\"http://ovidsp.ovid.com/ovidweb.cgi?T=JS&NEWS=n&CSC=Y&PAGE=toc&D=yrovft&AN=01709766-000000000-00000\")","v":"http://ovidsp.ovid.com/ovidweb.cgi?T=JS&NEWS=n&CSC=Y&PAGE=toc&D=yrovft&AN=01709766-000000000-00000"},"JBJS-CS-I15",1075466]
["JBJS Journal of Orthopaedics for Physician Assistants","2470-1122","1535-1386","The Journal of Bone and Joint Surgery, Inc.",1,1,5,4,"Summer 2013","October-December 2017",{"$f":"HYPERLINK(\"http://ovidsp.ovid.com/ovidweb.cgi?T=JS&NEWS=n&CSC=Y&PAGE=toc&D=yrovft&AN=01932788-000000000-00000\",\"http://ovidsp.ovid.com/ovidweb.cgi?T=JS&NEWS=n&CSC=Y&PAGE=toc&D=yrovft&AN=01932788-000000000-00000\")","v":"http://ovidsp.ovid.com/ovidweb.cgi?T=JS&NEWS=n&CSC=Y&PAGE=toc&D=yrovft&AN=01932788-000000000-00000"},"JBJS-CS-I15",1075466]
["JBJS Reviews","2329-9185","2329-9185","The Journal of Bone and Joint Surgery, Inc.",1,2,5,12,"December 10, 2013","December 2017",{"$f":"HYPERLINK(\"http://ovidsp.ovid.com/ovidweb.cgi?T=JS&NEWS=n&CSC=Y&PAGE=toc&D=yrovft&AN=01874474-000000000-00000\",\"http://ovidsp.ovid.com/ovidweb.cgi?T=JS&NEWS=n&CSC=Y&PAGE=toc&D=yrovft&AN=01874474-000000000-00000\")","v":"http://ovidsp.ovid.com/ovidweb.cgi?T=JS&NEWS=n&CSC=Y&PAGE=toc&D=yrovft&AN=01874474-000000000-00000"},"JBJS-CS-I15",1075466]
["Journal of Acquired Immune Deficiency Syndromes & Human Retrovirology","1077-9450","1944-7884","Lippincott Williams & Wilkins, Inc.",13,0,20,5,"1996","April 15, 1999",{"$f":"HYPERLINK(\"http://ovidsp.ovid.com/ovidweb.cgi?T=JS&NEWS=n&CSC=Y&PAGE=toc&D=yrovft&AN=00042560-000000000-00000\",\"http://ovidsp.ovid.com/ovidweb.cgi?T=JS&NEWS=n&CSC=Y&PAGE=toc&D=yrovft&AN=00042560-000000000-00000\")","v":"http://ovidsp.ovid.com/ovidweb.cgi?T=JS&NEWS=n&CSC=Y&PAGE=toc&D=yrovft&AN=00042560-000000000-00000"},"LPCP-CS-I15",1075469]
["Journal of Bone & Joint Surgery - American Volume","0021-9355","1535-1386","Journal of Bone & Joint Surgery, Inc.",75,1,99,24,"January 1993","December 20, 2017",{"$f":"HYPERLINK(\"http://ovidsp.ovid.com/ovidweb.cgi?T=JS&NEWS=n&CSC=Y&PAGE=toc&D=yrovft&AN=00004623-000000000-00000\",\"http://ovidsp.ovid.com/ovidweb.cgi?T=JS&NEWS=n&CSC=Y&PAGE=toc&D=yrovft&AN=00004623-000000000-00000\")","v":"http://ovidsp.ovid.com/ovidweb.cgi?T=JS&NEWS=n&CSC=Y&PAGE=toc&D=yrovft&AN=00004623-000000000-00000"},"JBJS-CS-I15",1075466]
["Journal of Cardiopulmonary Rehabilitation","0883-9212","1932-751X","Lippincott Williams & Wilkins, Inc.",16,1,26,6,"January/February 1996","November/December 2006",{"$f":"HYPERLINK(\"http://ovidsp.ovid.com/ovidweb.cgi?T=JS&NEWS=n&CSC=Y&PAGE=toc&D=yrovft&AN=00008483-000000000-00000\",\"http://ovidsp.ovid.com/ovidweb.cgi?T=JS&NEWS=n&CSC=Y&PAGE=toc&D=yrovft&AN=00008483-000000000-00000\")","v":"http://ovidsp.ovid.com/ovidweb.cgi?T=JS&NEWS=n&CSC=Y&PAGE=toc&D=yrovft&AN=00008483-000000000-00000"},"JCRH-JN-96 ",1075467]
["Journal of Cardiopulmonary Rehabilitation","0883-9212","1932-751X","Lippincott Williams & Wilkins, Inc.",16,1,26,6,"January/February 1996","November/December 2006",{"$f":"HYPERLINK(\"http://ovidsp.ovid.com/ovidweb.cgi?T=JS&NEWS=n&CSC=Y&PAGE=toc&D=yrovft&AN=00008483-000000000-00000\",\"http://ovidsp.ovid.com/ovidweb.cgi?T=JS&NEWS=n&CSC=Y&PAGE=toc&D=yrovft&AN=00008483-000000000-00000\")","v":"http://ovidsp.ovid.com/ovidweb.cgi?T=JS&NEWS=n&CSC=Y&PAGE=toc&D=yrovft&AN=00008483-000000000-00000"},"LPCP-CS-I15",1075469]
["Journal of Cardiopulmonary Rehabilitation & Prevention","1932-7501","1932-751X","Lippincott Williams & Wilkins, Inc.",27,1,38,1,"January/February 2007","January 2018",{"$f":"HYPERLINK(\"http://ovidsp.ovid.com/ovidweb.cgi?T=JS&NEWS=n&CSC=Y&PAGE=toc&D=yrovft&AN=01273116-000000000-00000\",\"http://ovidsp.ovid.com/ovidweb.cgi?T=JS&NEWS=n&CSC=Y&PAGE=toc&D=yrovft&AN=01273116-000000000-00000\")","v":"http://ovidsp.ovid.com/ovidweb.cgi?T=JS&NEWS=n&CSC=Y&PAGE=toc&D=yrovft&AN=01273116-000000000-00000"},"LPCP-CS-I15",1075469]
["Journal of Cardiopulmonary Rehabilitation & Prevention","1932-7501","1932-751X","Lippincott Williams & Wilkins, Inc.",27,1,38,1,"January/February 2007","January 2018",{"$f":"HYPERLINK(\"http://ovidsp.ovid.com/ovidweb.cgi?T=JS&NEWS=n&CSC=Y&PAGE=toc&D=yrovft&AN=01273116-000000000-00000\",\"http://ovidsp.ovid.com/ovidweb.cgi?T=JS&NEWS=n&CSC=Y&PAGE=toc&D=yrovft&AN=01273116-000000000-00000\")","v":"http://ovidsp.ovid.com/ovidweb.cgi?T=JS&NEWS=n&CSC=Y&PAGE=toc&D=yrovft&AN=01273116-000000000-00000"},"JCRH-JN-96 ",1075467]
["Journal of Pediatric Orthopaedics B","1060-152X","1473-5865","Lippincott Williams & Wilkins, Inc.",9,1,27,1,"January 2000","January 2018",{"$f":"HYPERLINK(\"http://ovidsp.ovid.com/ovidweb.cgi?T=JS&NEWS=n&CSC=Y&PAGE=toc&D=yrovft&AN=01202412-000000000-00000\",\"http://ovidsp.ovid.com/ovidweb.cgi?T=JS&NEWS=n&CSC=Y&PAGE=toc&D=yrovft&AN=01202412-000000000-00000\")","v":"http://ovidsp.ovid.com/ovidweb.cgi?T=JS&NEWS=n&CSC=Y&PAGE=toc&D=yrovft&AN=01202412-000000000-00000"},"LPCP-CS-I15",1075469]
["Pain","0304-3959","1872-6623","Lippincott Williams & Wilkins, Inc.",84,1,159,1,"January 1, 2000","January 2018",{"$f":"HYPERLINK(\"http://ovidsp.ovid.com/ovidweb.cgi?T=JS&NEWS=n&CSC=Y&PAGE=toc&D=yrovft&AN=00006396-000000000-00000\",\"http://ovidsp.ovid.com/ovidweb.cgi?T=JS&NEWS=n&CSC=Y&PAGE=toc&D=yrovft&AN=00006396-000000000-00000\")","v":"http://ovidsp.ovid.com/ovidweb.cgi?T=JS&NEWS=n&CSC=Y&PAGE=toc&D=yrovft&AN=00006396-000000000-00000"},"JPAI-JN-14 ",1075468]
["PAIN Reports","2471-2531","1872-6623","Wolters Kluwer Health | Lippincott Williams & Wilkins",1,1,2,6,"July 2016","November/December 2017",{"$f":"HYPERLINK(\"http://ovidsp.ovid.com/ovidweb.cgi?T=JS&NEWS=n&CSC=Y&PAGE=toc&D=yrovft&AN=01938936-000000000-00000\",\"http://ovidsp.ovid.com/ovidweb.cgi?T=JS&NEWS=n&CSC=Y&PAGE=toc&D=yrovft&AN=01938936-000000000-00000\")","v":"http://ovidsp.ovid.com/ovidweb.cgi?T=JS&NEWS=n&CSC=Y&PAGE=toc&D=yrovft&AN=01938936-000000000-00000"},"JPAI-JN-14 ",1075468]
["Pathology Case Reviews","1082-9784","2381-652X","Lippincott Williams & Wilkins, Inc.",6,1,20,6,"January/February 2001","November/December 2015",{"$f":"HYPERLINK(\"http://ovidsp.ovid.com/ovidweb.cgi?T=JS&NEWS=n&CSC=Y&PAGE=toc&D=yrovft&AN=00132583-000000000-00000\",\"http://ovidsp.ovid.com/ovidweb.cgi?T=JS&NEWS=n&CSC=Y&PAGE=toc&D=yrovft&AN=00132583-000000000-00000\")","v":"http://ovidsp.ovid.com/ovidweb.cgi?T=JS&NEWS=n&CSC=Y&PAGE=toc&D=yrovft&AN=00132583-000000000-00000"},"LPCP-CS-I15",1075469]
["Topics in Obstetrics & Gynecology","2380-0216","","Lippincott Williams & Wilkins, Inc.",36,1,38,2,"January 15, 2016","January 30, 2018",{"$f":"HYPERLINK(\"http://ovidsp.ovid.com/ovidweb.cgi?T=JS&NEWS=n&CSC=Y&PAGE=toc&D=yrovft&AN=01938899-000000000-00000\",\"http://ovidsp.ovid.com/ovidweb.cgi?T=JS&NEWS=n&CSC=Y&PAGE=toc&D=yrovft&AN=01938899-000000000-00000\")","v":"http://ovidsp.ovid.com/ovidweb.cgi?T=JS&NEWS=n&CSC=Y&PAGE=toc&D=yrovft&AN=01938899-000000000-00000"},"LPCP-CS-I15",1075469]

{"sheet":"Új Könyvek","index":1,"n_rows":64,"n_cols":8,"rows_kept":64,"cut":false,"hidden":false,"merged":[]}
["Book Title","ISBN-13","ISBN-10","Publisher","Edition","Jumpstart","Prod Code","Order"]
["5-Minute Clinical Consult Premium 2018, The","978-1-4963-7465-3","1-4963-7465-7","Lippincott Williams & Wilkins","26th_Edition",{"$f":"HYPERLINK(\"http://ovidsp.ovid.com/ovidweb.cgi?T=JS&NEWS=n&CSC=Y&PAGE=booktext&D=books&AN=02008467$&XPATH=/PG(0)&EPUB=Y\",\"http://ovidsp.ovid.com/ovidweb.cgi?T=JS&NEWS=n&CSC=Y&PAGE=booktext&D=books&AN=02008467$&XPATH=/PG(0)&EPUB=Y\")","v":"http://ovidsp.ovid.com/ovidweb.cgi?T=JS&NEWS=n&CSC=Y&PAGE=booktext&D=books&AN=02008467$&XPATH=/PG(0)&EPUB=Y"},"DDEC-CS-C17",1147196]
["5-Minute Urology Consult, The","978-1-4511-8998-8","1-4511-8998-2","Lippincott Williams & Wilkins","3rd_Edition",{"$f":"HYPERLINK(\"http://ovidsp.ovid.com/ovidweb.cgi?T=JS&NEWS=n&CSC=Y&PAGE=booktext&D=books&AN=01787263$&XPATH=/PG(0)&EPUB=Y\",\"http://ovidsp.ovid.com/ovidweb.cgi?T=JS&NEWS=n&CSC=Y&PAGE=booktext&D=books&AN=01787263$&XPATH=/PG(0)&EPUB=Y\")","v":"http://ovidsp.ovid.com/ovidweb.cgi?T=JS&NEWS=n&CSC=Y&PAGE=booktext&D=books&AN=01787263$&XPATH=/PG(0)&EPUB=Y"},"DDEC-CS-C17",1147196]
["ACSM'S Exercise is Medicine: A Clinician's Guide to Exercise Prescription","978-1-5825-5739-7","1-5825-5739-X","Lippincott Williams & Wilkins","1st_Edition",{"$f":"HYPERLINK(\"http://ovidsp.ovid.com/ovidweb.cgi?T=JS&NEWS=n&CSC=Y&PAGE=booktext&D=books&AN=01429387$&XPATH=/PG(0)&EPUB=Y\",\"http://ovidsp.ovid.com/ovidweb.cgi?T=JS&NEWS=n&CSC=Y&PAGE=booktext&D=books&AN=01429387$&XPATH=/PG(0)&EPUB=Y\")","v":"http://ovidsp.ovid.com/ovidweb.cgi?T=JS&NEWS=n&CSC=Y&PAGE=booktext&D=books&AN=01429387$&XPATH=/PG(0)&EPUB=Y"},"DDEC-CS-C17",1147196]
["ACSM's Sports Medicine: A Comprehensive Review","978-1-4511-0425-7","1-4511-0425-1","Lippincott Williams & Wilkins","1st_Edition",{"$f":"HYPERLINK(\"http://ovidsp.ovid.com/ovidweb.cgi?T=JS&NEWS=n&CSC=Y&PAGE=booktext&D=books&AN=01745939$&XPATH=/PG(0)&EPUB=Y\",\"http://ovidsp.ovid.com/ovidweb.cgi?T=JS&NEWS=n&CSC=Y&PAGE=booktext&D=books&AN=01745939$&XPATH=/PG(0)&EPUB=Y\")","v":"http://ovidsp.ovid.com/ovidweb.cgi?T=JS&NEWS=n&CSC=Y&PAGE=booktext&D=books&AN=01745939$&XPATH=/PG(0)&EPUB=Y"},"DDEC-CS-C17",1147196]
["Acute Care Surgery","978-1-6083-1428-7","1-6083-1428-6","Lippincott Williams & Wilkins","1st_Edition",{"$f":"HYPERLINK(\"http://ovidsp.ovid.com/ovidweb.cgi?T=JS&NEWS=n&CSC=Y&PAGE=booktext&D=books&AN=01439389$&XPATH=/PG(0)&EPUB=Y\",\"http://ovidsp.ovid.com/ovidweb.cgi?T=JS&NEWS=n&CSC=Y&PAGE=booktext&D=books&AN=01439389$&XPATH=/PG(0)&EPUB=Y\")","v":"http://ovidsp.ovid.com/ovidweb.cgi?T=JS&NEWS=n&CSC=Y&PAGE=booktext&D=books&AN=01439389$&XPATH=/PG(0)&EPUB=Y"},"DDEC-CS-C17",1147196]
["Aunt Minnie's Atlas and Imaging-Specific Diagnosis","978-1-4511-7215-7","1-4511-7215-X","Lippincott Williams & Wilkins","4th_Edition",{"$f":"HYPERLINK(\"http://ovidsp.ovid.com/ovidweb.cgi?T=JS&NEWS=n&CSC=Y&PAGE=booktext&D=books&AN=01762463$&XPATH=/PG(0)&EPUB=Y\",\"http://ovidsp.ovid.com/ovidweb.cgi?T=JS&NEWS=n&CSC=Y&PAGE=booktext&D=books&AN=01762463$&XPATH=/PG(0)&EPUB=Y\")","v":"http://ovidsp.ovid.com/ovidweb.cgi?T=JS&NEWS=n&CSC=Y&PAGE=booktext&D=books&AN=01762463$&XPATH=/PG(0)&EPUB=Y"},"DDEC-CS-C17",1147196]
["AWHONN's Perinatal Nursing","978-1-6091-3622-2","1-6091-3622-5","Lippincott Williams & Wilkins","4th_Edition",{"$f":"HYPERLINK(\"http://ovidsp.ovid.com/ovidweb.cgi?T=JS&NEWS=n&CSC=Y&PAGE=booktext&D=books&AN=01735123$&XPATH=/PG(0)&EPUB=Y\",\"http://ovidsp.ovid.com/ovidweb.cgi?T=JS&NEWS=n&CSC=Y&PAGE=booktext&D=books&AN=01735123$&XPATH=/PG(0)&EPUB=Y\")","v":"http://ovidsp.ovid.com/ovidweb.cgi?T=JS&NEWS=n&CSC=Y&PAGE=booktext&D=books&AN=01735123$&XPATH=/PG(0)&EPUB=Y"},"DDEC-CS-C17",1147196]
["Bailey's Head and Neck Surgery: Otolaryngology","978-1-6091-3602-4","1-6091-3602-0","Lippincott Williams & Wilkins","5th_Edition",{"$f":"HYPERLINK(\"http://ovidsp.ovid.com/ovidweb.cgi?T=JS&NEWS=n&CSC=Y&PAGE=booktext&D=books&AN=01735165$&XPATH=/PG(0)&EPUB=Y\",\"http://ovidsp.ovid.com/ovidweb.cgi?T=JS&NEWS=n&CSC=Y&PAGE=booktext&D=books&AN=01735165$&XPATH=/PG(0)&EPUB=Y\")","v":"http://ovidsp.ovid.com/ovidweb.cgi?T=JS&NEWS=n&CSC=Y&PAGE=booktext&D=books&AN=01735165$&XPATH=/PG(0)&EPUB=Y"},"DDEC-CS-C17",1147196]
["Bethesda Handbook of Clinical Oncology, The","978-1-4511-8758-8","1-4511-8758-0","Lippincott Williams & Wilkins","4th_Edition",{"$f":"HYPERLINK(\"http://ovidsp.ovid.com/ovidweb.cgi?T=JS&NEWS=n&CSC=Y&PAGE=booktext&D=books&AN=01787243$&XPATH=/PG(0)&EPUB=Y\",\"http://ovidsp.ovid.com/ovidweb.cgi?T=JS&NEWS=n&CSC=Y&PAGE=booktext&D=books&AN=01787243$&XPATH=/PG(0)&EPUB=Y\")","v":"http://ovidsp.ovid.com/ovidweb.cgi?T=JS&NEWS=n&CSC=Y&PAGE=booktext&D=books&AN=01787243$&XPATH=/PG(0)&EPUB=Y"},"DDEC-CS-C17",1147196]
["Bonica's Management of Pain","978-0-7817-6827-6","0-7817-6827-6","Lippincott Williams & Wilkins","4th_Edition",{"$f":"HYPERLINK(\"http://ovidsp.ovid.com/ovidweb.cgi?T=JS&NEWS=n&CSC=Y&PAGE=booktext&D=books&AN=01435373$&XPATH=/PG(0)&EPUB=Y\",\"http://ovidsp.ovid.com/ovidweb.cgi?T=JS&NEWS=n&CSC=Y&PAGE=booktext&D=books&AN=01435373$&XPATH=/PG(0)&EPUB=Y\")","v":"http://ovidsp.ovid.com/ovidweb.cgi?T=JS&NEWS=n&CSC=Y&PAGE=booktext&D=books&AN=01435373$&XPATH=/PG(0)&EPUB=Y"},"DDEC-CS-C17",1147196]
["Breast Imaging Companion","978-1-4963-1496-3","1-4963-1496-4","Lippincott Williams & Wilkins","4th_Edition",{"$f":"HYPERLINK(\"http://ovidsp.ovid.com/ovidweb.cgi?T=JS&NEWS=n&CSC=Y&PAGE=booktext&D=books&AN=01984683$&XPATH=/PG(0)&EPUB=Y\",\"http://ovidsp.ovid.com/ovidweb.cgi?T=JS&NEWS=n&CSC=Y&PAGE=booktext&D=books&AN=01984683$&XPATH=/PG(0)&EPUB=Y\")","v":"http://ovidsp.ovid.com/ovidweb.cgi?T=JS&NEWS=n&CSC=Y&PAGE=booktext&D=books&AN=01984683$&XPATH=/PG(0)&EPUB=Y"},"DDEC-CS-C17",1147196]
["Cancer of the Skin:","978-1-4963-3393-3","1-4963-3393-4","Lippincott Williams & Wilkins","10th_Edition",{"$f":"HYPERLINK(\"http://ovidsp.ovid.com/ovidweb.cgi?T=JS&NEWS=n&CSC=Y&PAGE=booktext&D=books&AN=01906606$&XPATH=/PG(0)&EPUB=Y\",\"http://ovidsp.ovid.com/ovidweb.cgi?T=JS&NEWS=n&CSC=Y&PAGE=booktext&D=books&AN=01906606$&XPATH=/PG(0)&EPUB=Y\")","v":"http://ovidsp.ovid.com/ovidweb.cgi?T=JS&NEWS=n&CSC=Y&PAGE=booktext&D=books&AN=01906606$&XPATH=/PG(0)&EPUB=Y"},"DDEC-CS-C17",1147196]
["Clinical Epidemiology: The Essentials","978-1-4511-4447-5","1-4511-4447-4","Lippincott Williams & Wilkins","5th_Edition",{"$f":"HYPERLINK(\"http://ovidsp.ovid.com/ovidweb.cgi?T=JS&NEWS=n&CSC=Y&PAGE=booktext&D=books&AN=01745970$&XPATH=/PG(0)&EPUB=Y\",\"http://ovidsp.ovid.com/ovidweb.cgi?T=JS&NEWS=n&CSC=Y&PAGE=booktext&D=books&AN=01745970$&XPATH=/PG(0)&EPUB=Y\")","v":"http://ovidsp.ovid.com/ovidweb.cgi?T=JS&NEWS=n&CSC=Y&PAGE=booktext&D=books&AN=01745970$&XPATH=/PG(0)&EPUB=Y"},"DDEC-CS-C17",1147196]
["Clinical Manual of Contact Lenses","978-1-4511-7532-5","1-4511-7532-9","Lippincott Williams & Wilkins","4th_Edition",{"$f":"HYPERLINK(\"http://ovidsp.ovid.com/ovidweb.cgi?T=JS&NEWS=n&CSC=Y&PAGE=booktext&D=books&AN=01745917$&XPATH=/PG(0)&EPUB=Y\",\"http://ovidsp.ovid.com/ovidweb.cgi?T=JS&NEWS=n&CSC=Y&PAGE=booktext&D=books&AN=01745917$&XPATH=/PG(0)&EPUB=Y\")","v":"http://ovidsp.ovid.com/ovidweb.cgi?T=JS&NEWS=n&CSC=Y&PAGE=booktext&D=books&AN=01745917$&XPATH=/PG(0)&EPUB=Y"},"DDEC-CS-C17",1147196]
["CMSA Core Curriculum for Case Management","978-1-4511-9430-2","1-4511-9430-7","Lippincott Williams & Wilkins","3rd_Edition",{"$f":"HYPERLINK(\"http://ovidsp.ovid.com/ovidweb.cgi?T=JS&NEWS=n&CSC=Y&PAGE=booktext&D=books&AN=01938966$&XPATH=/PG(0)&EPUB=Y\",\"http://ovidsp.ovid.com/ovidweb.cgi?T=JS&NEWS=n&CSC=Y&PAGE=booktext&D=books&AN=01938966$&XPATH=/PG(0)&EPUB=Y\")","v":"http://ovidsp.ovid.com/ovidweb.cgi?T=JS&NEWS=n&CSC=Y&PAGE=booktext&D=books&AN=01938966$&XPATH=/PG(0)&EPUB=Y"},"DDEC-CS-C17",1147196]
["DeJong's: The Neurologic Examination","978-1-4511-0920-7","1-4511-0920-2","Lippincott Williams & Wilkins","7th_Edition",{"$f":"HYPERLINK(\"http://ovidsp.ovid.com/ovidweb.cgi?T=JS&NEWS=n&CSC=Y&PAGE=booktext&D=books&AN=01745865$&XPATH=/PG(0)&EPUB=Y\",\"http://ovidsp.ovid.com/ovidweb.cgi?T=JS&NEWS=n&CSC=Y&PAGE=booktext&D=books&AN=01745865$&XPATH=/PG(0)&EPUB=Y\")","v":"http://ovidsp.ovid.com/ovidweb.cgi?T=JS&NEWS=n&CSC=Y&PAGE=booktext&D=books&AN=01745865$&XPATH=/PG(0)&EPUB=Y"},"DDEC-CS-C17",1147196]
["DeVita, Hellman, and Rosenberg's Cancer: Principles & Practice of Oncology","978-1-4511-9294-0","1-4511-9294-0","Lippincott Williams & Wilkins","10th_Edition",{"$f":"HYPERLINK(\"http://ovidsp.ovid.com/ovidweb.cgi?T=JS&NEWS=n&CSC=Y&PAGE=booktext&D=books&AN=01833060$&XPATH=/PG(0)&EPUB=Y\",\"http://ovidsp.ovid.com/ovidweb.cgi?T=JS&NEWS=n&CSC=Y&PAGE=booktext&D=books&AN=01833060$&XPATH=/PG(0)&EPUB=Y\")","v":"http://ovidsp.ovid.com/ovidweb.cgi?T=JS&NEWS=n&CSC=Y&PAGE=booktext&D=books&AN=01833060$&XPATH=/PG(0)&EPUB=Y"},"DDEC-CS-C17",1147196]
["Drugs in Pregnancy and Lactation","978-1-4963-4962-0","1-4963-4962-8","Lippincott Williams & Wilkins","11th_Edition",{"$f":"HYPERLINK(\"http://ovidsp.ovid.com/ovidweb.cgi?T=JS&NEWS=n&CSC=Y&PAGE=booktext&D=books&AN=01979437$&XPATH=/PG(0)&EPUB=Y\",\"http://ovidsp.ovid.com/ovidweb.cgi?T=JS&NEWS=n&CSC=Y&PAGE=booktext&D=books&AN=01979437$&XPATH=/PG(0)&EPUB=Y\")","v":"http://ovidsp.ovid.com/ovidweb.cgi?T=JS&NEWS=n&CSC=Y&PAGE=booktext&D=books&AN=01979437$&XPATH=/PG(0)&EPUB=Y"},"DDEC-CS-C17",1147196]
["Essential Physics of Medical Imaging, The","978-0-7817-8057-5","0-7817-8057-8","Lippincott Williams & Wilkins","3rd_Edition",{"$f":"HYPERLINK(\"http://ovidsp.ovid.com/ovidweb.cgi?T=JS&NEWS=n&CSC=Y&PAGE=booktext&D=books&AN=01612924$&XPATH=/PG(0)&EPUB=Y\",\"http://ovidsp.ovid.com/ovidweb.cgi?T=JS&NEWS=n&CSC=Y&PAGE=booktext&D=books&AN=01612924$&XPATH=/PG(0)&EPUB=Y\")","v":"http://ovidsp.ovid.com/ovidweb.cgi?T=JS&NEWS=n&CSC=Y&PAGE=booktext&D=books&AN=01612924$&XPATH=/PG(0)&EPUB=Y"},"DDEC-CS-C17",1147196]
["Fundamental Immunology","978-1-4511-1783-7","1-4511-1783-3","Lippincott Williams & Wilkins","7th_Edition",{"$f":"HYPERLINK(\"http://ovidsp.ovid.com/ovidweb.cgi?T=JS&NEWS=n&CSC=Y&PAGE=booktext&D=books&AN=01641754$&XPATH=/PG(0)&EPUB=Y\",\"http://ovidsp.ovid.com/ovidweb.cgi?T=JS&NEWS=n&CSC=Y&PAGE=booktext&D=books&AN=01641754$&XPATH=/PG(0)&EPUB=Y\")","v":"http://ovidsp.ovid.com/ovidweb.cgi?T=JS&NEWS=n&CSC=Y&PAGE=booktext&D=books&AN=01641754$&XPATH=/PG(0)&EPUB=Y"},"DDEC-CS-C17",1147196]
["Fundamentals of Diagnostic Radiology","978-1-6083-1911-4","1-6083-1911-3","Lippincott Williams & Wilkins","4th_Edition",{"$f":"HYPERLINK(\"http://ovidsp.ovid.com/ovidweb.cgi?T=JS&NEWS=n&CSC=Y&PAGE=booktext&D=books&AN=01626601$&XPATH=/PG(0)&EPUB=Y\",\"http://ovidsp.ovid.com/ovidweb.cgi?T=JS&NEWS=n&CSC=Y&PAGE=booktext&D=books&AN=01626601$&XPATH=/PG(0)&EPUB=Y\")","v":"http://ovidsp.ovid.com/ovidweb.cgi?T=JS&NEWS=n&CSC=Y&PAGE=booktext&D=books&AN=01626601$&XPATH=/PG(0)&EPUB=Y"},"DDEC-CS-C17",1147196]
["Glenn's Urologic Surgery","978-1-4511-9146-2","1-4511-9146-4","Lippincott Williams & Wilkins","8th_Edition",{"$f":"HYPERLINK(\"http://ovidsp.ovid.com/ovidweb.cgi?T=JS&NEWS=n&CSC=Y&PAGE=booktext&D=books&AN=01884451$&XPATH=/PG(0)&EPUB=Y\",\"http://ovidsp.ovid.com/ovidweb.cgi?T=JS&NEWS=n&CSC=Y&PAGE=booktext&D=books&AN=01884451$&XPATH=/PG(0)&EPUB=Y\")","v":"http://ovidsp.ovid.com/ovidweb.cgi?T=JS&NEWS=n&CSC=Y&PAGE=booktext&D=books&AN=01884451$&XPATH=/PG(0)&EPUB=Y"},"DDEC-CS-C17",1147196]
["Grabb and Smith's Plastic Surgery","978-1-4511-0955-9","1-4511-0955-5","Lippincott Williams & Wilkins","7th_Edition",{"$f":"HYPERLINK(\"http://ovidsp.ovid.com/ovidweb.cgi?T=JS&NEWS=n&CSC=Y&PAGE=booktext&D=books&AN=01745920$&XPATH=/PG(0)&EPUB=Y\",\"http://ovidsp.ovid.com/ovidweb.cgi?T=JS&NEWS=n&CSC=Y&PAGE=booktext&D=books&AN=01745920$&XPATH=/PG(0)&EPUB=Y\")","v":"http://ovidsp.ovid.com/ovidweb.cgi?T=JS&NEWS=n&CSC=Y&PAGE=booktext&D=books&AN=01745920$&XPATH=/PG(0)&EPUB=Y"},"DDEC-CS-C17",1147196]
["Greenfield's Surgery: Scientific Principles and Practice","978-1-4698-9001-2","1-4698-9001-1","Lippincott Williams & Wilkins","6th_Edition",{"$f":"HYPERLINK(\"http://ovidsp.ovid.com/ovidweb.cgi?T=JS&NEWS=n&CSC=Y&PAGE=booktext&D=books&AN=01960900$&XPATH=/PG(0)&EPUB=Y\",\"http://ovidsp.ovid.com/ovidweb.cgi?T=JS&NEWS=n&CSC=Y&PAGE=booktext&D=books&AN=01960900$&XPATH=/PG(0)&EPUB=Y\")","v":"http://ovidsp.ovid.com/ovidweb.cgi?T=JS&NEWS=n&CSC=Y&PAGE=booktext&D=books&AN=01960900$&XPATH=/PG(0)&EPUB=Y"},"DDEC-CS-C17",1147196]
["Harris & Harris' The Radiology of Emergency Medicine","978-1-4511-0720-3","1-4511-0720-X","Lippincott Williams & Wilkins","5th_Edition",{"$f":"HYPERLINK(\"http://ovidsp.ovid.com/ovidweb.cgi?T=JS&NEWS=n&CSC=Y&PAGE=booktext&D=books&AN=01641756$&XPATH=/PG(0)&EPUB=Y\",\"http://ovidsp.ovid.com/ovidweb.cgi?T=JS&NEWS=n&CSC=Y&PAGE=booktext&D=books&AN=01641756$&XPATH=/PG(0)&EPUB=Y\")","v":"http://ovidsp.ovid.com/ovidweb.cgi?T=JS&NEWS=n&CSC=Y&PAGE=booktext&D=books&AN=01641756$&XPATH=/PG(0)&EPUB=Y"},"DDEC-CS-C17",1147196]
["Khan's Treatment Planning in Radiation Oncology","978-1-4698-8997-9","1-4698-8997-8","Lippincott Williams & Wilkins","4th_Edition",{"$f":"HYPERLINK(\"http://ovidsp.ovid.com/ovidweb.cgi?T=JS&NEWS=n&CSC=Y&PAGE=booktext&D=books&AN=01929430$&XPATH=/PG(0)&EPUB=Y\",\"http://ovidsp.ovid.com/ovidweb.cgi?T=JS&NEWS=n&CSC=Y&PAGE=booktext&D=books&AN=01929430$&XPATH=/PG(0)&EPUB=Y\")","v":"http://ovidsp.ovid.com/ovidweb.cgi?T=JS&NEWS=n&CSC=Y&PAGE=booktext&D=books&AN=01929430$&XPATH=/PG(0)&EPUB=Y"},"DDEC-CS-C17",1147196]
["Lippincott Manual of Nursing Practice","978-1-4511-7354-3","1-4511-7354-7","Lippincott Williams & Wilkins","10th_Edition",{"$f":"HYPERLINK(\"http://ovidsp.ovid.com/ovidweb.cgi?T=JS&NEWS=n&CSC=Y&PAGE=booktext&D=books&AN=01735126$&XPATH=/PG(0)&EPUB=Y\",\"http://ovidsp.ovid.com/ovidweb.cgi?T=JS&NEWS=n&CSC=Y&PAGE=booktext&D=books&AN=01735126$&XPATH=/PG(0)&EPUB=Y\")","v":"http://ovidsp.ovid.com/ovidweb.cgi?T=JS&NEWS=n&CSC=Y&PAGE=booktext&D=books&AN=01735126$&XPATH=/PG(0)&EPUB=Y"},"DDEC-CS-C17",1147196]
["Manual of Laboratory and Diagnostic Tests, A","978-1-4511-9089-2","1-4511-9089-1","Lippincott Williams & Wilkins","9th_Edition",{"$f":"HYPERLINK(\"http://ovidsp.ovid.com/ovidweb.cgi?T=JS&NEWS=n&CSC=Y&PAGE=booktext&D=books&AN=01787332$&XPATH=/PG(0)&EPUB=Y\",\"http://ovidsp.ovid.com/ovidweb.cgi?T=JS&NEWS=n&CSC=Y&PAGE=booktext&D=books&AN=01787332$&XPATH=/PG(0)&EPUB=Y\")","v":"http://ovidsp.ovid.com/ovidweb.cgi?T=JS&NEWS=n&CSC=Y&PAGE=booktext&D=books&AN=01787332$&XPATH=/PG(0)&EPUB=Y"},"DDEC-CS-C17",1147196]
["Master Techniques in Otolaryngology: Head and Neck Surgery - Thyroid, Parathyroid, Salivary Glands, Paranasal Sinuses and Nasopharynx, Volume 2","978-1-4511-4367-6","1-4511-4367-2","Lippincott Williams & Wilkins","1st_Edition",{"$f":"HYPERLINK(\"http://ovidsp.ovid.com/ovidweb.cgi?T=JS&NEWS=n&CSC=Y&PAGE=booktext&D=books&AN=01762488$&XPATH=/PG(0)&EPUB=Y\",\"http://ovidsp.ovid.com/ovidweb.cgi?T=JS&NEWS=n&CSC=Y&PAGE=booktext&D=books&AN=01762488$&XPATH=/PG(0)&EPUB=Y\")","v":"http://ovidsp.ovid.com/ovidweb.cgi?T=JS&NEWS=n&CSC=Y&PAGE=booktext&D=books&AN=01762488$&XPATH=/PG(0)&EPUB=Y"},"DDEC-CS-C17",1147196]
["Master Techniques in Surgery: Thoracic Surgery - Lung Resections, Bronchoplasty","978-1-4511-9073-1","1-4511-9073-5","Lippincott Williams & Wilkins","1st_Edition",{"$f":"HYPERLINK(\"http://ovidsp.ovid.com/ovidweb.cgi?T=JS&NEWS=n&CSC=Y&PAGE=booktext&D=books&AN=01817288$&XPATH=/PG(0)&EPUB=Y\",\"http://ovidsp.ovid.com/ovidweb.cgi?T=JS&NEWS=n&CSC=Y&PAGE=booktext&D=books&AN=01817288$&XPATH=/PG(0)&EPUB=Y\")","v":"http://ovidsp.ovid.com/ovidweb.cgi?T=JS&NEWS=n&CSC=Y&PAGE=booktext&D=books&AN=01817288$&XPATH=/PG(0)&EPUB=Y"},"DDEC-CS-C17",1147196]
["Master Techniques in Surgery: Thoracic Surgery - Transplantation, Tracheal Resections, Mediastinal Tumors, Extended Thoracic Resections","978-1-4511-9072-4","1-4511-9072-7","Lippincott Williams & Wilkins","1st_Edition",{"$f":"HYPERLINK(\"http://ovidsp.ovid.com/ovidweb.cgi?T=JS&NEWS=n&CSC=Y&PAGE=booktext&D=books&AN=01817287$&XPATH=/PG(0)&EPUB=Y\",\"http://ovidsp.ovid.com/ovidweb.cgi?T=JS&NEWS=n&CSC=Y&PAGE=booktext&D=books&AN=01817287$&XPATH=/PG(0)&EPUB=Y\")","v":"http://ovidsp.ovid.com/ovidweb.cgi?T=JS&NEWS=n&CSC=Y&PAGE=booktext&D=books&AN=01817287$&XPATH=/PG(0)&EPUB=Y"},"DDEC-CS-C17",1147196]
["McGlamry's Comprehensive Textbook of Foot and Ankle Surgery","978-0-7817-6580-0","0-7817-6580-3","Lippincott Williams & Wilkins","4th_Edition",{"$f":"HYPERLINK(\"http://ovidsp.ovid.com/ovidweb.cgi?T=JS&NEWS=n&CSC=Y&PAGE=booktext&D=books&AN=01720564$&XPATH=/PG(0)&EPUB=Y\",\"http://ovidsp.ovid.com/ovidweb.cgi?T=JS&NEWS=n&CSC=Y&PAGE=booktext&D=books&AN=01720564$&XPATH=/PG(0)&EPUB=Y\")","v":"http://ovidsp.ovid.com/ovidweb.cgi?T=JS&NEWS=n&CSC=Y&PAGE=booktext&D=books&AN=01720564$&XPATH=/PG(0)&EPUB=Y"},"DDEC-CS-C17",1147196]
["Merritt's Neurology","978-1-4511-9336-7","1-4511-9336-X","Lippincott Williams & Wilkins","13th_Edition",{"$f":"HYPERLINK(\"http://ovidsp.ovid.com/ovidweb.cgi?T=JS&NEWS=n&CSC=Y&PAGE=booktext&D=books&AN=01866994$&XPATH=/PG(0)&EPUB=Y\",\"http://ovidsp.ovid.com/ovidweb.cgi?T=JS&NEWS=n&CSC=Y&PAGE=booktext&D=books&AN=01866994$&XPATH=/PG(0)&EPUB=Y\")","v":"http://ovidsp.ovid.com/ovidweb.cgi?T=JS&NEWS=n&CSC=Y&PAGE=booktext&D=books&AN=01866994$&XPATH=/PG(0)&EPUB=Y"},"DDEC-CS-C17",1147196]
["Modern Nutrition in Health and Disease","978-1-6054-7461-8","1-6054-7461-4","Lippincott Williams & Wilkins","11th_Edition",{"$f":"HYPERLINK(\"http://ovidsp.ovid.com/ovidweb.cgi?T=JS&NEWS=n&CSC=Y&PAGE=booktext&D=books&AN=01720555$&XPATH=/PG(0)&EPUB=Y\",\"http://ovidsp.ovid.com/ovidweb.cgi?T=JS&NEWS=n&CSC=Y&PAGE=booktext&D=books&AN=01720555$&XPATH=/PG(0)&EPUB=Y\")","v":"http://ovidsp.ovid.com/ovidweb.cgi?T=JS&NEWS=n&CSC=Y&PAGE=booktext&D=books&AN=01720555$&XPATH=/PG(0)&EPUB=Y"},"DDEC-CS-C17",1147196]
["Neurological and Neurosurgical Intensive Care","978-0-7817-3196-6","0-7817-3196-8","Lippincott Williams & Wilkins","4th_Edition",{"$f":"HYPERLINK(\"http://ovidsp.ovid.com/ovidweb.cgi?T=JS&NEWS=n&CSC=Y&PAGE=booktext&D=books&AN=01382622$&XPATH=/PG(0)&EPUB=Y\",\"http://ovidsp.ovid.com/ovidweb.cgi?T=JS&NEWS=n&CSC=Y&PAGE=booktext&D=books&AN=01382622$&XPATH=/PG(0)&EPUB=Y\")","v":"http://ovidsp.ovid.com/ovidweb.cgi?T=JS&NEWS=n&CSC=Y&PAGE=booktext&D=books&AN=01382622$&XPATH=/PG(0)&EPUB=Y"},"DDEC-CS-C17",1147196]
["Neuroscience of Clinical Psychiatry, The: The Pathophysiology of Behavior and Mental Illness","978-1-4511-0154-6","1-4511-0154-6","Lippincott Williams & Wilkins","2nd_Edition",{"$f":"HYPERLINK(\"http://ovidsp.ovid.com/ovidweb.cgi?T=JS&NEWS=n&CSC=Y&PAGE=booktext&D=books&AN=01735127$&XPATH=/PG(0)&EPUB=Y\",\"http://ovidsp.ovid.com/ovidweb.cgi?T=JS&NEWS=n&CSC=Y&PAGE=booktext&D=books&AN=01735127$&XPATH=/PG(0)&EPUB=Y\")","v":"http://ovidsp.ovid.com/ovidweb.cgi?T=JS&NEWS=n&CSC=Y&PAGE=booktext&D=books&AN=01735127$&XPATH=/PG(0)&EPUB=Y"},"DDEC-CS-C17",1147196]
["Nutrition in Clinical Practice: A Comprehensive, Evidence-Based Manual for the Practitioner","978-1-4511-8664-2","1-4511-8664-9","Lippincott Williams & Wilkins","3rd_Edition",{"$f":"HYPERLINK(\"http://ovidsp.ovid.com/ovidweb.cgi?T=JS&NEWS=n&CSC=Y&PAGE=booktext&D=books&AN=01817274$&XPATH=/PG(0)&EPUB=Y\",\"http://ovidsp.ovid.com/ovidweb.cgi?T=JS&NEWS=n&CSC=Y&PAGE=booktext&D=books&AN=01817274$&XPATH=/PG(0)&EPUB=Y\")","v":"http://ovidsp.ovid.com/ovidweb.cgi?T=JS&NEWS=n&CSC=Y&PAGE=booktext&D=books&AN=01817274$&XPATH=/PG(0)&EPUB=Y"},"DDEC-CS-C17",1147196]
["Operative Standards for Cancer Surgery: Volume 1 - Breast, Lung, Pancreas, Colon","978-1-4511-9475-3","1-4511-9475-7","Lippincott Williams & Wilkins","1st_Edition",{"$f":"HYPERLINK(\"http://ovidsp.ovid.com/ovidweb.cgi?T=JS&NEWS=n&CSC=Y&PAGE=booktext&D=books&AN=01906619$&XPATH=/PG(0)&EPUB=Y\",\"http://ovidsp.ovid.com/ovidweb.cgi?T=JS&NEWS=n&CSC=Y&PAGE=booktext&D=books&AN=01906619$&XPATH=/PG(0)&EPUB=Y\")","v":"http://ovidsp.ovid.com/ovidweb.cgi?T=JS&NEWS=n&CSC=Y&PAGE=booktext&D=books&AN=01906619$&XPATH=/PG(0)&EPUB=Y"},"DDEC-CS-C17",1147196]
["Operative Techniques in Surgery","978-1-4511-8631-4","1-4511-8631-2","Lippincott Williams & Wilkins","1st_Edition",{"$f":"HYPERLINK(\"http://ovidsp.ovid.com/ovidweb.cgi?T=JS&NEWS=n&CSC=Y&PAGE=booktext&D=books&AN=01817290$&XPATH=/PG(0)&EPUB=Y\",\"http://ovidsp.ovid.com/ovidweb.cgi?T=JS&NEWS=n&CSC=Y&PAGE=booktext&D=books&AN=01817290$&XPATH=/PG(0)&EPUB=Y\")","v":"http://ovidsp.ovid.com/ovidweb.cgi?T=JS&NEWS=n&CSC=Y&PAGE=booktext&D=books&AN=01817290$&XPATH=/PG(0)&EPUB=Y"},"DDEC-CS-C17",1147196]
["Orthopedic Imaging: A Practical Approach","978-1-4511-9130-1","1-4511-9130-8","Lippincott Williams & Wilkins","6th_Edition",{"$f":"HYPERLINK(\"http://ovidsp.ovid.com/ovidweb.cgi?T=JS&NEWS=n&CSC=Y&PAGE=booktext&D=books&AN=01817275$&XPATH=/PG(0)&EPUB=Y\",\"http://ovidsp.ovid.com/ovidweb.cgi?T=JS&NEWS=n&CSC=Y&PAGE=booktext&D=books&AN=01817275$&XPATH=/PG(0)&EPUB=Y\")","v":"http://ovidsp.ovid.com/ovidweb.cgi?T=JS&NEWS=n&CSC=Y&PAGE=booktext&D=books&AN=01817275$&XPATH=/PG(0)&EPUB=Y"},"DDEC-CS-C17",1147196]
["Pediatric Physical Therapy","978-1-4511-7345-1","1-4511-7345-8","Lippincott Williams & Wilkins","5th_Edition",{"$f":"HYPERLINK(\"http://ovidsp.ovid.com/ovidweb.cgi?T=JS&NEWS=n&CSC=Y&PAGE=booktext&D=books&AN=01899927$&XPATH=/PG(0)&EPUB=Y\",\"http://ovidsp.ovid.com/ovidweb.cgi?T=JS&NEWS=n&CSC=Y&PAGE=booktext&D=books&AN=01899927$&XPATH=/PG(0)&EPUB=Y\")","v":"http://ovidsp.ovid.com/ovidweb.cgi?T=JS&NEWS=n&CSC=Y&PAGE=booktext&D=books&AN=01899927$&XPATH=/PG(0)&EPUB=Y"},"DDEC-CS-C17",1147196]
["Pediatric Radiation Oncology","978-1-4963-4286-7","1-4963-4286-0","Lippincott Williams & Wilkins","6th_Edition",{"$f":"HYPERLINK(\"http://ovidsp.ovid.com/ovidweb.cgi?T=JS&NEWS=n&CSC=Y&PAGE=booktext&D=books&AN=01960885$&XPATH=/PG(0)&EPUB=Y\",\"http://ovidsp.ovid.com/ovidweb.cgi?T=JS&NEWS=n&CSC=Y&PAGE=booktext&D=books&AN=01960885$&XPATH=/PG(0)&EPUB=Y\")","v":"http://ovidsp.ovid.com/ovidweb.cgi?T=JS&NEWS=n&CSC=Y&PAGE=booktext&D=books&AN=01960885$&XPATH=/PG(0)&EPUB=Y"},"DDEC-CS-C17",1147196]
["Perez and Brady's Principles and Practice of Radiation Oncology","978-1-4511-1648-9","1-4511-1648-9","Lippincott Williams & Wilkins","6th_Edition",{"$f":"HYPERLINK(\"http://ovidsp.ovid.com/ovidweb.cgi?T=JS&NEWS=n&CSC=Y&PAGE=booktext&D=books&AN=01735139$&XPATH=/PG(0)&EPUB=Y\",\"http://ovidsp.ovid.com/ovidweb.cgi?T=JS&NEWS=n&CSC=Y&PAGE=booktext&D=books&AN=01735139$&XPATH=/PG(0)&EPUB=Y\")","v":"http://ovidsp.ovid.com/ovidweb.cgi?T=JS&NEWS=n&CSC=Y&PAGE=booktext&D=books&AN=01735139$&XPATH=/PG(0)&EPUB=Y"},"DDEC-CS-C17",1147196]
["Practical Approach to Pediatric Anesthesia, A","978-1-4698-8982-5","1-4698-8982-X","Lippincott Williams & Wilkins","2nd_Edition",{"$f":"HYPERLINK(\"http://ovidsp.ovid.com/ovidweb.cgi?T=JS&NEWS=n&CSC=Y&PAGE=booktext&D=books&AN=01879005$&XPATH=/PG(0)&EPUB=Y\",\"http://ovidsp.ovid.com/ovidweb.cgi?T=JS&NEWS=n&CSC=Y&PAGE=booktext&D=books&AN=01879005$&XPATH=/PG(0)&EPUB=Y\")","v":"http://ovidsp.ovid.com/ovidweb.cgi?T=JS&NEWS=n&CSC=Y&PAGE=booktext&D=books&AN=01879005$&XPATH=/PG(0)&EPUB=Y"},"DDEC-CS-C17",1147196]
["Primary Care Medicine: Office Evaluation and Management of the Adult Patient","978-1-4511-5149-7","1-4511-5149-7","Lippincott Williams & Wilkins","7th_Edition",{"$f":"HYPERLINK(\"http://ovidsp.ovid.com/ovidweb.cgi?T=JS&NEWS=n&CSC=Y&PAGE=booktext&D=books&AN=01787256$&XPATH=/PG(0)&EPUB=Y\",\"http://ovidsp.ovid.com/ovidweb.cgi?T=JS&NEWS=n&CSC=Y&PAGE=booktext&D=books&AN=01787256$&XPATH=/PG(0)&EPUB=Y\")","v":"http://ovidsp.ovid.com/ovidweb.cgi?T=JS&NEWS=n&CSC=Y&PAGE=booktext&D=books&AN=01787256$&XPATH=/PG(0)&EPUB=Y"},"DDEC-CS-C17",1147196]
["Principles and Practice of Pediatric Oncology","978-1-4511-9423-4","1-4511-9423-4","Lippincott Williams & Wilkins","7th_Edition",{"$f":"HYPERLINK(\"http://ovidsp.ovid.com/ovidweb.cgi?T=JS&NEWS=n&CSC=Y&PAGE=booktext&D=books&AN=01879012$&XPATH=/PG(0)&EPUB=Y\",\"http://ovidsp.ovid.com/ovidweb.cgi?T=JS&NEWS=n&CSC=Y&PAGE=booktext&D=books&AN=01879012$&XPATH=/PG(0)&EPUB=Y\")","v":"http://ovidsp.ovid.com/ovidweb.cgi?T=JS&NEWS=n&CSC=Y&PAGE=booktext&D=books&AN=01879012$&XPATH=/PG(0)&EPUB=Y"},"DDEC-CS-C17",1147196]
["Quality and Safety in Medical Imaging: The Essentials","978-1-4511-8686-4","1-4511-8686-X","Lippincott Williams & Wilkins","1st_Edition",{"$f":"HYPERLINK(\"http://ovidsp.ovid.com/ovidweb.cgi?T=JS&NEWS=n&CSC=Y&PAGE=booktext&D=books&AN=01960890$&XPATH=/PG(0)&EPUB=Y\",\"http://ovidsp.ovid.com/ovidweb.cgi?T=JS&NEWS=n&CSC=Y&PAGE=booktext&D=books&AN=01960890$&XPATH=/PG(0)&EPUB=Y\")","v":"http://ovidsp.ovid.com/ovidweb.cgi?T=JS&NEWS=n&CSC=Y&PAGE=booktext&D=books&AN=01960890$&XPATH=/PG(0)&EPUB=Y"},"DDEC-CS-C17",1147196]
["Rockwood and Green's Fractures in Adults","978-1-4511-7531-8","1-4511-7531-0","Lippincott Williams & Wilkins","8th_Edition",{"$f":"HYPERLINK(\"http://ovidsp.ovid.com/ovidweb.cgi?T=JS&NEWS=n&CSC=Y&PAGE=booktext&D=books&AN=01787258$&XPATH=/PG(0)&EPUB=Y\",\"http://ovidsp.ovid.com/ovidweb.cgi?T=JS&NEWS=n&CSC=Y&PAGE=booktext&D=books&AN=01787258$&XPATH=/PG(0)&EPUB=Y\")","v":"http://ovidsp.ovid.com/ovidweb.cgi?T=JS&NEWS=n&CSC=Y&PAGE=booktext&D=books&AN=01787258$&XPATH=/PG(0)&EPUB=Y"},"DDEC-CS-C17",1147196]
["Rockwood and Wilkins' Fractures in Children","978-1-4511-4393-5","1-4511-4393-1","Lippincott Williams & Wilkins","8th_Edition",{"$f":"HYPERLINK(\"http://ovidsp.ovid.com/ovidweb.cgi?T=JS&NEWS=n&CSC=Y&PAGE=booktext&D=books&AN=01787259$&XPATH=/PG(0)&EPUB=Y\",\"http://ovidsp.ovid.com/ovidweb.cgi?T=JS&NEWS=n&CSC=Y&PAGE=booktext&D=books&AN=01787259$&XPATH=/PG(0)&EPUB=Y\")","v":"http://ovidsp.ovid.com/ovidweb.cgi?T=JS&NEWS=n&CSC=Y&PAGE=booktext&D=books&AN=01787259$&XPATH=/PG(0)&EPUB=Y"},"DDEC-CS-C17",1147196]
["Sarrafian's Anatomy of the Foot and Ankle: Descriptive, Topographical, Functional","978-0-7817-9750-4","0-7817-9750-0","Lippincott Williams & Wilkins","3rd_Edition",{"$f":"HYPERLINK(\"http://ovidsp.ovid.com/ovidweb.cgi?T=JS&NEWS=n&CSC=Y&PAGE=booktext&D=books&AN=01439423$&XPATH=/PG(0)&EPUB=Y\",\"http://ovidsp.ovid.com/ovidweb.cgi?T=JS&NEWS=n&CSC=Y&PAGE=booktext&D=books&AN=01439423$&XPATH=/PG(0)&EPUB=Y\")","v":"http://ovidsp.ovid.com/ovidweb.cgi?T=JS&NEWS=n&CSC=Y&PAGE=booktext&D=books&AN=01439423$&XPATH=/PG(0)&EPUB=Y"},"DDEC-CS-C17",1147196]
["Stedman's Medical Dictionary","978-0-7817-3390-8","0-7817-3390-1","Lippincott Williams & Wilkins","28th_Edition",{"$f":"HYPERLINK(\"http://ovidsp.ovid.com/ovidweb.cgi?T=JS&NEWS=n&CSC=Y&PAGE=booktext&D=books&AN=01781599$&XPATH=/PG(0)&EPUB=Y\",\"http://ovidsp.ovid.com/ovidweb.cgi?T=JS&NEWS=n&CSC=Y&PAGE=booktext&D=books&AN=01781599$&XPATH=/PG(0)&EPUB=Y\")","v":"http://ovidsp.ovid.com/ovidweb.cgi?T=JS&NEWS=n&CSC=Y&PAGE=booktext&D=books&AN=01781599$&XPATH=/PG(0)&EPUB=Y"},"DDEC-CS-C17",1147196]
["Stocker and Dehner's Pediatric Pathology","978-1-4511-9373-2","1-4511-9373-4","Lippincott Williams & Wilkins","4th_Edition",{"$f":"HYPERLINK(\"http://ovidsp.ovid.com/ovidweb.cgi?T=JS&NEWS=n&CSC=Y&PAGE=booktext&D=books&AN=01899897$&XPATH=/PG(0)&EPUB=Y\",\"http://ovidsp.ovid.com/ovidweb.cgi?T=JS&NEWS=n&CSC=Y&PAGE=booktext&D=books&AN=01899897$&XPATH=/PG(0)&EPUB=Y\")","v":"http://ovidsp.ovid.com/ovidweb.cgi?T=JS&NEWS=n&CSC=Y&PAGE=booktext&D=books&AN=01899897$&XPATH=/PG(0)&EPUB=Y"},"DDEC-CS-C17",1147196]
["Stuttering: An Integrated Approach to Its Nature and Treatment","978-1-6083-1004-3","1-6083-1004-3","Lippincott Williams & Wilkins","4th_Edition",{"$f":"HYPERLINK(\"http://ovidsp.ovid.com/ovidweb.cgi?T=JS&NEWS=n&CSC=Y&PAGE=booktext&D=books&AN=01899929$&XPATH=/PG(0)&EPUB=Y\",\"http://ovidsp.ovid.com/ovidweb.cgi?T=JS&NEWS=n&CSC=Y&PAGE=booktext&D=books&AN=01899929$&XPATH=/PG(0)&EPUB=Y\")","v":"http://ovidsp.ovid.com/ovidweb.cgi?T=JS&NEWS=n&CSC=Y&PAGE=booktext&D=books&AN=01899929$&XPATH=/PG(0)&EPUB=Y"},"DDEC-CS-C17",1147196]
["Te Linde's Operative Gynecology","978-1-4511-7736-7","1-4511-7736-4","Lippincott Williams & Wilkins","11th_Edition",{"$f":"HYPERLINK(\"http://ovidsp.ovid.com/ovidweb.cgi?T=JS&NEWS=n&CSC=Y&PAGE=booktext&D=books&AN=01867001$&XPATH=/PG(0)&EPUB=Y\",\"http://ovidsp.ovid.com/ovidweb.cgi?T=JS&NEWS=n&CSC=Y&PAGE=booktext&D=books&AN=01867001$&XPATH=/PG(0)&EPUB=Y\")","v":"http://ovidsp.ovid.com/ovidweb.cgi?T=JS&NEWS=n&CSC=Y&PAGE=booktext&D=books&AN=01867001$&XPATH=/PG(0)&EPUB=Y"},"DDEC-CS-C17",1147196]
["Textbook of Uroradiology","978-1-4511-0916-0","1-4511-0916-4","Lippincott Williams & Wilkins","5th_Edition",{"$f":"HYPERLINK(\"http://ovidsp.ovid.com/ovidweb.cgi?T=JS&NEWS=n&CSC=Y&PAGE=booktext&D=books&AN=01641768$&XPATH=/PG(0)&EPUB=Y\",\"http://ovidsp.ovid.com/ovidweb.cgi?T=JS&NEWS=n&CSC=Y&PAGE=booktext&D=books&AN=01641768$&XPATH=/PG(0)&EPUB=Y\")","v":"http://ovidsp.ovid.com/ovidweb.cgi?T=JS&NEWS=n&CSC=Y&PAGE=booktext&D=books&AN=01641768$&XPATH=/PG(0)&EPUB=Y"},"DDEC-CS-C17",1147196]
["Trauma Manual, The: Trauma and Acute Care Surgery","978-1-4511-1679-3","1-4511-1679-9","Lippincott Williams & Wilkins","4th_Edition",{"$f":"HYPERLINK(\"http://ovidsp.ovid.com/ovidweb.cgi?T=JS&NEWS=n&CSC=Y&PAGE=booktext&D=books&AN=01641775$&XPATH=/PG(0)&EPUB=Y\",\"http://ovidsp.ovid.com/ovidweb.cgi?T=JS&NEWS=n&CSC=Y&PAGE=booktext&D=books&AN=01641775$&XPATH=/PG(0)&EPUB=Y\")","v":"http://ovidsp.ovid.com/ovidweb.cgi?T=JS&NEWS=n&CSC=Y&PAGE=booktext&D=books&AN=01641775$&XPATH=/PG(0)&EPUB=Y"},"TRMA-PB-E04",1147197]
["Walls Manual of Emergency Airway Management, The","978-1-4963-5196-8","1-4963-5196-7","Lippincott Williams & Wilkins","5th_Edition",{"$f":"HYPERLINK(\"http://ovidsp.ovid.com/ovidweb.cgi?T=JS&NEWS=n&CSC=Y&PAGE=booktext&D=books&AN=01996178$&XPATH=/PG(0)&EPUB=Y\",\"http://ovidsp.ovid.com/ovidweb.cgi?T=JS&NEWS=n&CSC=Y&PAGE=booktext&D=books&AN=01996178$&XPATH=/PG(0)&EPUB=Y\")","v":"http://ovidsp.ovid.com/ovidweb.cgi?T=JS&NEWS=n&CSC=Y&PAGE=booktext&D=books&AN=01996178$&XPATH=/PG(0)&EPUB=Y"},"DDEC-CS-C17",1147196]
["Washington Manual of Echocardiography, The","978-1-4963-2128-2","1-4963-2128-6","Lippincott Williams & Wilkins","2nd_Edition",{"$f":"HYPERLINK(\"http://ovidsp.ovid.com/ovidweb.cgi?T=JS&NEWS=n&CSC=Y&PAGE=booktext&D=books&AN=01949548$&XPATH=/PG(0)&EPUB=Y\",\"http://ovidsp.ovid.com/ovidweb.cgi?T=JS&NEWS=n&CSC=Y&PAGE=booktext&D=books&AN=01949548$&XPATH=/PG(0)&EPUB=Y\")","v":"http://ovidsp.ovid.com/ovidweb.cgi?T=JS&NEWS=n&CSC=Y&PAGE=booktext&D=books&AN=01949548$&XPATH=/PG(0)&EPUB=Y"},"DDEC-CS-C17",1147196]
["Washington Manual of Surgical Pathology, The","978-1-4511-1436-2","1-4511-1436-2","Lippincott Williams & Wilkins","2nd_Edition",{"$f":"HYPERLINK(\"http://ovidsp.ovid.com/ovidweb.cgi?T=JS&NEWS=n&CSC=Y&PAGE=booktext&D=books&AN=01626622$&XPATH=/PG(0)&EPUB=Y\",\"http://ovidsp.ovid.com/ovidweb.cgi?T=JS&NEWS=n&CSC=Y&PAGE=booktext&D=books&AN=01626622$&XPATH=/PG(0)&EPUB=Y\")","v":"http://ovidsp.ovid.com/ovidweb.cgi?T=JS&NEWS=n&CSC=Y&PAGE=booktext&D=books&AN=01626622$&XPATH=/PG(0)&EPUB=Y"},"DDEC-CS-C17",1147196]
["Washington Manual\u0099, The:  Allergy, Asthma, and Immunology - Subspecialty Consult","978-1-4511-1367-9","1-4511-1367-6","Lippincott Williams & Wilkins","2nd_Edition",{"$f":"HYPERLINK(\"http://ovidsp.ovid.com/ovidweb.cgi?T=JS&NEWS=n&CSC=Y&PAGE=booktext&D=books&AN=01807319$&XPATH=/PG(0)&EPUB=Y\",\"http://ovidsp.ovid.com/ovidweb.cgi?T=JS&NEWS=n&CSC=Y&PAGE=booktext&D=books&AN=01807319$&XPATH=/PG(0)&EPUB=Y\")","v":"http://ovidsp.ovid.com/ovidweb.cgi?T=JS&NEWS=n&CSC=Y&PAGE=booktext&D=books&AN=01807319$&XPATH=/PG(0)&EPUB=Y"},"DDEC-CS-C17",1147196]
["Willard & Spackman's Occupational Therapy","978-1-4511-1080-7","1-4511-1080-4","Lippincott Williams & Wilkins","12th_Edition",{"$f":"HYPERLINK(\"http://ovidsp.ovid.com/ovidweb.cgi?T=JS&NEWS=n&CSC=Y&PAGE=booktext&D=books&AN=01899934$&XPATH=/PG(0)&EPUB=Y\",\"http://ovidsp.ovid.com/ovidweb.cgi?T=JS&NEWS=n&CSC=Y&PAGE=booktext&D=books&AN=01899934$&XPATH=/PG(0)&EPUB=Y\")","v":"http://ovidsp.ovid.com/ovidweb.cgi?T=JS&NEWS=n&CSC=Y&PAGE=booktext&D=books&AN=01899934$&XPATH=/PG(0)&EPUB=Y"},"DDEC-CS-C17",1147196]
["Wills Eye Manual, The: Office and Emergency Room Diagnosis and Treatment of Eye Disease","978-1-4963-1883-1","1-4963-1883-8","Lippincott Williams & Wilkins","7th_Edition",{"$f":"HYPERLINK(\"http://ovidsp.ovid.com/ovidweb.cgi?T=JS&NEWS=n&CSC=Y&PAGE=booktext&D=books&AN=01929438$&XPATH=/PG(0)&EPUB=Y\",\"http://ovidsp.ovid.com/ovidweb.cgi?T=JS&NEWS=n&CSC=Y&PAGE=booktext&D=books&AN=01929438$&XPATH=/PG(0)&EPUB=Y\")","v":"http://ovidsp.ovid.com/ovidweb.cgi?T=JS&NEWS=n&CSC=Y&PAGE=booktext&D=books&AN=01929438$&XPATH=/PG(0)&EPUB=Y"},"DDEC-CS-C17",1147196]
["Yao & Artusio's Anesthesiology: Problem-Oriented Patient Management","978-1-4963-1170-2","1-4963-1170-1","Lippincott Williams & Wilkins","8th_Edition",{"$f":"HYPERLINK(\"http://ovidsp.ovid.com/ovidweb.cgi?T=JS&NEWS=n&CSC=Y&PAGE=booktext&D=books&AN=01929440$&XPATH=/PG(0)&EPUB=Y\",\"http://ovidsp.ovid.com/ovidweb.cgi?T=JS&NEWS=n&CSC=Y&PAGE=booktext&D=books&AN=01929440$&XPATH=/PG(0)&EPUB=Y\")","v":"http://ovidsp.ovid.com/ovidweb.cgi?T=JS&NEWS=n&CSC=Y&PAGE=booktext&D=books&AN=01929440$&XPATH=/PG(0)&EPUB=Y"},"DDEC-CS-C17",1147196]